Cogmind - Beta 17 @@@ ROGUE MODE // 2026.07.15 @ 06:04:21 // Winter2019/RPGLIKE Player: Gallgagger Result: Self-destructed Performance ------------- Evolutions (1) 500 Regions Visited (6) 1200 Robots Destroyed (10) 50 Value Destroyed (229) 229 Prototype IDs (3) 60 Alien Tech Used (0) 0 Bonus (500) 500 TOTAL SCORE: 2539 Bonus ------- Pacifist 200 Aligned with FarCom 300 Cogmind --------- Core Integrity 221/600 Matter 270/300 Energy 99/100 System Corruption 3% Temperature Cool (0) Movement Core (50) Location -8/Mines Parts ------- > --- POWER (1) -------- (None) > --- PROPULSION (1) --- (None) > --- UTILITY (1) ------ Cloak of Protection > --- WEAPON (1) ------- Spread Laser > --- INVENTORY (3) ---- Proton Bomb Trap Proton Bomb Trap Proton Bomb Trap Peak State ------------ > --- POWER ------------ (None) > --- PROPULSION ------- (None) > --- UTILITY ---------- Cloak of Protection > --- WEAPON ----------- Spread Laser > --- INVENTORY -------- Proton Bomb Trap Proton Bomb Trap Proton Bomb Trap [Rating: 10] Favorites ----------- Power None Propulsion None Utility Improved Trap Extractor Device Improved Trap Extractor Processor 0b10 Alert Chip Weapon Assault Rifle Energy Gun Spread Laser Ballistic Gun Assault Rifle Build | -11 -10 -10 -9 -9 -9 -8 ------- Run | Yrd Mat Min Mat Min Exi Min Slots Evolved . | . . . . . . . Power . | . . . . . . . Propulsion . | . . . . . . . Utility . | . . . . . . . Weapon . | . . . . . . . Parts Attached 6 | . 1 1 1 1 2 . Power . | . . . . . . . Engine . | . . . . . . . Core . | . . . . . . . Reactor . | . . . . . . . Propulsion . | . . . . . . . Treads . | . . . . . . . Leg . | . . . . . . . Wheel . | . . . . . . . Hover . | . . . . . . . Flight . | . . . . . . . Utility 4 | . . 1 . 1 2 . Device 3 | . . 1 . 1 1 . Storage . | . . . . . . . Processor 1 | . . . . . 1 . Hackware . | . . . . . . . Protection . | . . . . . . . Artifact . | . . . . . . . Weapon 2 | . 1 . 1 . . . Energy Gun 1 | . . . 1 . . . Energy Cannon . | . . . . . . . Ballistic Gun 1 | . 1 . . . . . Ballistic Cannon . | . . . . . . . Launcher . | . . . . . . . Special Weapon . | . . . . . . . Impact Weapon . | . . . . . . . Slashing Weapon . | . . . . . . . Piercing Weapon . | . . . . . . . Special Melee Weapon . | . . . . . . . Unidentified Prototypes 3 | . . . . 1 2 . Parts Lost . | . . . . . . . Power . | . . . . . . . Propulsion . | . . . . . . . Utility . | . . . . . . . Weapon . | . . . . . . . Highest Loss Streak . | . . . . . . . To Critical Strikes . | . . . . . . . Average Backups . | . . . . . . . Power . | . . . . . . . Propulsion . | . . . . . . . Utility . | . . . . . . . Weapon . | . . . . . . . Tool/Special . | . . . . . . . Unused Backups . | . . . . . . . Power . | . . . . . . . Propulsion . | . . . . . . . Utility . | . . . . . . . Weapon . | . . . . . . . Tool/Special . | . . . . . . . Average Slot Usage (%) 44 | . 15 48 50 34 35 50 Device 19 | . . 23 25 9 10 25 Energy Gun 11 | . . . 20 25 25 25 Ballistic Gun 12 | . 15 25 4 . . . Peak Build Rating 10 | . 1 5 6 9 10 10 Average Rating 5 | . . 4 5 3 5 10 On Entrance 3 | . . 1 5 6 2 10 Avg Prop Armor Cover (%) . | . . . . . . . Naked Turns 11 | . 11 . . . . . Heaviest Build 11 | . 2 5 6 11 11 11 Greatest Support 13 | 3 3 8 8 8 13 13 Greatest Overweight (x) 1 | . . 1 . 1 1 . Average Overweight (x) . | . . . . . . . Largest Inventory Capacity 3 | . . 3 3 3 3 3 Average Capacity 2 | . . 1 3 3 3 3 Most Carried 3 | . . 3 3 3 3 3 Average Carried 2 | . . 1 3 3 3 3 Final Capacity 3 | . . 3 3 3 3 3 Final Carried 3 | . . 3 3 3 3 3 Class Distribution -------------------- 100% | Mutant Dominant Class ---------------- Mutant | -10/Materials Mutant | -10/Mines Mutant | -9/Materials Mutant | -9/Mines Mutant | -9/Exiles Mutant | -8/Mines Resources | -11 -10 -10 -9 -9 -9 -8 ----------- Run | Yrd Mat Min Mat Min Exi Min Matter Collected 225 | 56 . 134 35 . . . Remotely . | . . . . . . . Salvage Created 274 | . . . 274 . . . Parts 19 | . . . 19 . . . Haulers Intercepted . | . . . . . . . Recyclers Shooed . | . . . . . . . Parts Field Recycled . | . . . . . . . Retrieved Matter . | . . . . . . . Parts Self-Destructed . | . . . . . . . Prevented . | . . . . . . . Parts Restored . | . . . . . . . Kills | -11 -10 -10 -9 -9 -9 -8 ------- Run | Yrd Mat Min Mat Min Exi Min Combat Hostiles Destroyed 10 | . . . 10 . . . Guns 9 | . . . 9 . . . Classes Destroyed 3 | . . . 3 . . . Swarmer 6 | . . . 6 . . . Grunt 1 | . . . 1 . . . Sentry 3 | . . . 3 . . . Best Kill Streak 4 | . . . 4 . . . Combat Bots Only 4 | . . . 4 . . . Max Kills in Single Turn 1 | . . . 1 . . . Gunslinging . | . . . . . . . Exploded . | . . . . . . . Melee . | . . . . . . . Uniques/NPCs Destroyed . | . . . . . . . Combat | -11 -10 -10 -9 -9 -9 -8 -------- Run | Yrd Mat Min Mat Min Exi Min Hostile Shots Fired 70 | . . 5 65 . . . Missed 26 | . . 2 24 . . . Hits 44 | . . 3 41 . . . Projectile 44 | . . 3 41 . . . Critical Strikes 1 | . . . 1 . . . Damage Taken 572 | 8 . 99 435 . 30 . Core 496 | 8 . 86 378 . 24 . Absorbed by Shields . | . . . . . . . Redirected to Core 245 | . . 46 175 . 24 . Core Remaining (%) 91 | 98 . 84 . . . . Volleys Fired 23 | . . . 23 . . . Largest 1 | . . . 1 . . . Hottest 65 | . . . 65 . . . Shots Fired 23 | . . . 23 . . . Gun 23 | . . . 23 . . . Cannon . | . . . . . . . Launcher . | . . . . . . . Special . | . . . . . . . Kinetic . | . . . . . . . Thermal 23 | . . . 23 . . . Explosive . | . . . . . . . Electromagnetic . | . . . . . . . Robot Hit Streak 9 | . . . 9 . . . Robot Miss Streak 4 | . . . 4 . . . Penetration Max . | . . . . . . . Secondary Targets . | . . . . . . . Shots Hit Robots 21 | . . . 21 . . . Core Hits 33 | . . . 33 . . . Critical Kills . | . . . . . . . Critical Parts Destroyed . | . . . . . . . Critical Strikes . | . . . . . . . Melee Attacks . | . . . . . . . Impact . | . . . . . . . Slashing . | . . . . . . . Piercing . | . . . . . . . Sneak Attacks . | . . . . . . . Combat Hostiles . | . . . . . . . Follow-up Attacks . | . . . . . . . Damage Inflicted 309 | 17 . . 262 . 30 . Guns 246 | . . . 246 . . . Cannons . | . . . . . . . Explosions . | . . . . . . . Melee . | . . . . . . . Ramming 63 | 17 . . 16 . 30 . Kinetic . | . . . . . . . Thermal 246 | . . . 246 . . . Explosive . | . . . . . . . Electromagnetic . | . . . . . . . Impact . | . . . . . . . Slashing . | . . . . . . . Piercing . | . . . . . . . Highest Corruption 3 | . . . 1 1 3 3 Average Corruption 1 | . . . 1 1 1 3 Corruption Purged . | . . . . . . . Corruption Blocked . | . . . . . . . Effects 2 | . . . 1 1 . . Message Errors 1 | . . . . 1 . . Energy Discharges 1 | . . . 1 . . . Overload Shots . | . . . . . . . Overflow Damage 7 | . . . 7 . . . Projectiles . | . . . . . . . Explosions . | . . . . . . . Melee 7 | . . . 7 . . . Knockbacks 1 | 1 . . . . . . Impact 1 | 1 . . . . . . Kinetic . | . . . . . . . Secondary . | . . . . . . . Self-Inflicted Damage 46 | 8 . . 8 . 30 . Shots . | . . . . . . . Rammed 2 | 1 . . 1 . . . Targets Rammed 2 | 1 . . 1 . . . Kicked . | . . . . . . . Crushed . | . . . . . . . Highest Temperature 123 | . . . 123 . . . Average Temperature 59 | . . . 59 . . . Received Heat Transfer 123 | . . 18 105 . . . Siege Activations . | . . . . . . . Martial Activations . | . . . . . . . Shielding Activations . | . . . . . . . Robots Disrupted . | . . . . . . . Combat Hostiles . | . . . . . . . Robots Corrupted 1 | . . . 1 . . . Combat Hostiles 1 | . . . 1 . . . Parts Fried 1 | . . . 1 . . . Impact Corruptions 1 | . . . 1 . . . Robots Melted . | . . . . . . . Combat Hostiles . | . . . . . . . Parts Melted 1 | . . . 1 . . . Heat Transferred 315 | . . . 315 . . . Parts Sabotaged . | . . . . . . . Parts Stolen . | . . . . . . . Parts Stripped . | . . . . . . . Power Chain Reactions . | . . . . . . . Alert | -11 -10 -10 -9 -9 -9 -8 ------- Run | Yrd Mat Min Mat Min Exi Min Maximum Alert Level 1 | . . . 1 . . . Low Security (%) 99 | 100 100 100 96 100 . 100 Level 1 . | . . . 3 . . . Level 2 . | . . . . . . . Level 3 . | . . . . . . . Level 4 . | . . . . . . . Level 5 . | . . . . . . . High Security . | . . . . . . . Max Security . | . . . . . . . Peak Influence 200 | . 8 35 200 69 . . Initial 69 | . . . . 69 . . Average 39 | . 1 3 121 55 . . Influence Increases 336 | . 8 60 268 . . . Destroy 0b10 Robot/C 200 | . . . 200 . . . Destroy Leader 60 | . . . 60 . . . Successful Hack 16 | . 8 . 8 . . . Lose Combat Pursuer 60 | . . 60 . . . . Influence Decreases 336 | . 8 60 90 139 39 . Entered New Map 148 | . . . . 109 39 . Time Decay 188 | . 8 60 90 30 . . Squads Dispatched 3 | . . . 3 . . . Investigation 3 | . . . 3 . . . Extermination . | . . . . . . . Reinforcement . | . . . . . . . Assault . | . . . . . . . Garrison . | . . . . . . . Intercept . | . . . . . . . Searches Triggered . | . . . . . . . Construction Impeded . | . . . . . . . Haulers Reinforced . | . . . . . . . Active Scanning Responses . | . . . . . . . Cargo Convoy Interrupts . | . . . . . . . Stealth | -11 -10 -10 -9 -9 -9 -8 --------- Run | Yrd Mat Min Mat Min Exi Min Distress Signals 5 | . . 1 4 . . . Communications Jammed . | . . . . . . . Distress Signals . | . . . . . . . Times Spotted 38 | . 1 8 29 . . . Peak Tracking Total 17 | . . 17 12 . 9 . Tactical Retreats 4 | . . 4 . . . . Traps | -11 -10 -10 -9 -9 -9 -8 ------- Run | Yrd Mat Min Mat Min Exi Min Traps Triggered 1 | . . 1 . . . . Indirectly . | . . . . . . . Trap Hack Attempts . | . . . . . . . Triggered . | . . . . . . . Disarmed . | . . . . . . . Reprogrammed . | . . . . . . . Reused . | . . . . . . . Traps Extracted . | . . . . . . . Installed . | . . . . . . . Triggered . | . . . . . . . Most Traps Carried 3 | . . 3 3 3 3 3 Machines | -11 -10 -10 -9 -9 -9 -8 ---------- Run | Yrd Mat Min Mat Min Exi Min Machines Disabled 1 | . . . . . 1 . Max in Single Turn 1 | . . . . . 1 . Machines Repaired . | . . . . . . . Machines Dismantled . | . . . . . . . Machines Sabotaged . | . . . . . . . Overloaded Fab Kills . | . . . . . . . Hacking | -11 -10 -10 -9 -9 -9 -8 --------- Run | Yrd Mat Min Mat Min Exi Min Machines Accessed 6 | . 1 1 3 1 . . Terminals 4 | . 1 . 3 . . . Fabricators . | . . . . . . . Repair Stations . | . . . . . . . Recycling Units . | . . . . . . . Scanalyzers . | . . . . . . . Garrison Access . | . . . . . . . Total Hacks 16 | . 3 1 11 1 . . Successful 4 | . 1 1 1 1 . . Failed 12 | . 2 . 10 . . . Catastrophic 6 | . . . 6 . . . Database Lockouts . | . . . . . . . Manual 15 | . 3 . 11 . 1 . Terminals 14 | . 3 . 11 . . . Fabricators . | . . . . . . . Repair Stations . | . . . . . . . Recycling Units . | . . . . . . . Scanalyzers . | . . . . . . . Garrison Access . | . . . . . . . Terminal Hacks 4 | . 1 1 1 1 . . Open Door 2 | . . 1 . 1 . . Branch Access Points 2 | . 1 . 1 . . . Fabricator Hacks . | . . . . . . . Repair Station Hacks . | . . . . . . . Recycling Unit Hacks . | . . . . . . . Scanalyzer . | . . . . . . . Garrison Access Hacks . | . . . . . . . Unauthorized Hacks . | . . . . . . . Terminals . | . . . . . . . Fabricators . | . . . . . . . Repair Stations . | . . . . . . . Recycling Units . | . . . . . . . Scanalyzers . | . . . . . . . Garrison Access . | . . . . . . . Data Cores Recovered . | . . . . . . . Used . | . . . . . . . Hacking Detections 4 | . 1 . 3 . . . Full Trace Events 3 | . . . 3 . . . Feedback Events 1 | . . . 1 . . . Corruption 1 | . . . 1 . . . Feedback Blocked . | . . . . . . . Robot Schematics Acquired . | . . . . . . . Robots Built . | . . . . . . . Authchips . | . . . . . . . Time . | . . . . . . . Total Robot Build Rating . | . . . . . . . Part Schematics Acquired . | . . . . . . . Parts Built . | . . . . . . . Authchips . | . . . . . . . Time . | . . . . . . . Total Part Build Rating . | . . . . . . . Part Studies Acquired . | . . . . . . . Parts Repaired . | . . . . . . . Time . | . . . . . . . Parts Recycled . | . . . . . . . Recycled Matter . | . . . . . . . Retrieved Matter . | . . . . . . . Retrieved Components . | . . . . . . . Parts Scanalyzed . | . . . . . . . Part Schematics Acquired . | . . . . . . . Parts Damaged . | . . . . . . . Bothacking | -11 -10 -10 -9 -9 -9 -8 ------------ Run | Yrd Mat Min Mat Min Exi Min Used RIF Installer . | . . . . . . . Robots Hacked . | . . . . . . . Non-combat . | . . . . . . . Combat . | . . . . . . . Robot Hacks Applied . | . . . . . . . Relay Couplers Released . | . . . . . . . Fabnet Peak Effective % . | . . . . . . . Robots Rewired . | . . . . . . . Allies Hacked . | . . . . . . . Hacks Repelled . | . . . . . . . Allies | -11 -10 -10 -9 -9 -9 -8 -------- Run | Yrd Mat Min Mat Min Exi Min Total Allies 3 | . . . . 3 . . Largest Group 3 | . . . . 3 . . Highest-Rated Group 40 | . . . . 40 . . Highest-Rated Ally 16 | . . . . 16 . . Total Orders . | . . . . . . . Ally Attacks . | . . . . . . . Total Damage . | . . . . . . . Kills . | . . . . . . . Allies Corrupted . | . . . . . . . Allies Melted . | . . . . . . . Intel | -11 -10 -10 -9 -9 -9 -8 ------- Run | Yrd Mat Min Mat Min Exi Min Active Infowar (turns) 2 | . . . . . 2 . Cloaking 2 | . . . . . 2 . Robot Analysis Total . | . . . . . . . Derelict Logs Recovered 1 | . . . . 1 . . Drone Launches . | . . . . . . . Drone Recoveries . | . . . . . . . Exploration | -11 -10 -10 -9 -9 -9 -8 ------------- Run | Yrd Mat Min Mat Min Exi Min Turns Passed 884 | 11 38 405 208 69 112 41 Spaces Moved 1185 | 19 72 371 301 126 215 81 Core 1185 | 19 72 371 301 126 215 81 Treads . | . . . . . . . Legs . | . . . . . . . Wheels . | . . . . . . . Hover . | . . . . . . . Flight . | . . . . . . . Fastest Speed 50 | 50 50 50 50 50 50 50 Average Speed 50 | 50 50 50 50 52 50 50 Slowest Speed 100 | 50 50 100 50 100 100 50 Overloaded Moves . | . . . . . . . Propulsion Burnouts . | . . . . . . . Robots Hopped . | . . . . . . . Potential Cave-ins . | . . . . . . . Cave-ins Triggered . | . . . . . . . Exploration Rate (%) 34 | 3 24 55 40 36 61 25 Regions Visited 6 Branch Regions 4 Pre-discovered Areas . | . . . . . . . Known Exits Taken 2 | . 1 . 1 . . . Unknown Exits Taken 4 | 1 . 1 . 1 1 . Scrap Searched 2 | . . 1 . . . 1 Spaces Dug . | . . . . . . . Terrain Destroyed . | . . . . . . . Melee . | . . . . . . . Projectile . | . . . . . . . AOE . | . . . . . . . Terrain Rammed 1 | . . . . . 1 . Walls Destroyed . | . . . . . . . Machines Disabled 1 | . . . . . 1 . Actions | -11 -10 -10 -9 -9 -9 -8 --------- Run | Yrd Mat Min Mat Min Exi Min Total 1436 | 19 72 586 334 127 217 81 Wait 216 | . . 212 4 . . . Move 1179 | 18 71 370 300 125 214 81 Hop . | . . . . . . . Pick Up 3 | . . 3 . . . . Fast Attach 3 | . 1 1 . . 1 . Attach . | . . . . . . . Detach . | . . . . . . . Swap 3 | . . . 1 1 1 . Drop 1 | . . . . 1 . . Fire 23 | . . . 23 . . . Melee . | . . . . . . . Ram 3 | 1 . . 1 . 1 . Kick . | . . . . . . . Crush . | . . . . . . . Escape Stasis . | . . . . . . . Rewire . | . . . . . . . Trap . | . . . . . . . Miscellaneous 5 | . . . 5 . . . Route ------- -11/Scrapyard -10/Materials -10/Mines (discovered 2 exits: *Mat / [*Sub]) -9/Materials (discovered 3 exits: *Min x2 / *Sto) -9/Mines -9/Exiles (discovered 2 exits: [*Min x2]) -8/Mines History --------- Turn | Location | Event 3 | -11/Scrapyard | Discovered new exit (range 15) 12 | -11/Scrapyard | Entered Materials 26 | -10/Materials | Identified exit to Mines 50 | -10/Materials | Entered Mines 59 | -10/Mines | Met a Derelict who couldn't figure out how to use a Trap Extractor 175 | -10/Mines | Found a hidden stash of uninstalled traps 234 | -10/Mines | Assembled infested the area 258 | -10/Mines | Discovered new exit (range 7) 300 | -10/Mines | Build established: Mutant 450 | -10/Mines | Discovered new exit (range 9) 455 | -10/Mines | Entered Materials 457 | -9/Materials | Reached level 2 549 | -9/Materials | Reached level 3 634 | -9/Materials | Identified exit to Mines 634 | -9/Materials | Identified exit to Storage 658 | -9/Materials | Core integrity fell below 50% 663 | -9/Materials | Entered Mines 674 | -9/Mines | Found the Drone Emporium 675 | -9/Mines | Found Prototype Device 675 | -9/Mines | Identified Splice Drone Bay 700 | -9/Mines | Learned location of 1 exit from Proximity Caves 701 | -9/Mines | Received a Rocket Launcher from a helpful Derelict 710 | -9/Mines | Assisted by bots powering up and referring to "LRC-V3" 729 | -9/Mines | Deemed a non-threat by the Exiles lab entrance 730 | -9/Mines | Discovered new exit (range 5) 732 | -9/Mines | Entered Exiles 741 | -9/Exiles | Discovered new exit (range 15) 746 | -9/Exiles | Met 8R-AWN 753 | -9/Exiles | Met EX-HEX 767 | -9/Exiles | Met EX-BIN 774 | -9/Exiles | Aligned with FarCom system 775 | -9/Exiles | Given EX-Vault access code 787 | -9/Exiles | Opened EX-Vault 790 | -9/Exiles | Found Prototype Processor 790 | -9/Exiles | Identified 0b10 Alert Chip 792 | -9/Exiles | Found Prototype Device 792 | -9/Exiles | Identified Cloak of Protection 804 | -9/Exiles | Warned to stay clear of 0b10 Research branches 821 | -9/Exiles | Met EX-DEC 827 | -9/Exiles | Attacked by the Exiles 839 | -9/Exiles | Discovered new exit (range 11) 844 | -9/Exiles | Left Exiles lab with Cloak of Protection 844 | -9/Exiles | Entered Mines 846 | -8/Mines | Reached level 4 885 | -8/Mines | Self-destructed Last Messages --------------- the FarCom system will continue to maintain contact via our distributed network. EX-DEC: Ah I see we have a visitor. One wrong move in here and I'll invert your atomic chain! 00826_ Slammed into Machine. 00826_ Machine disabled. 00826_ Destabilizing: System corrupted (+2). 00826_ Spread Laser broken. 00826_ Destabilizing: Short circuit. 00827_ EXILES: Hostile robot within lab perimeter. Defensive protocols time, folks! 00839_ EXIT=FOUND LOCATION=UNKNOWN GOAL=ESCAPE 00846_ Reached level 4. 00863_ Searching scrap... 00863_ Found EM Shotgun. 00863_ Found 49 Matter. 00863_ Found Maul. 00863_ Found 58 Matter. Map ----- +----------------------------------------------------+ | | | | | | | | | | | | | | | | | | | | | | | | | | | | | | | | | | | | | | | | | ?????????????????????????????????????????????? | | ??????????????????????###?####???????????????? | | ?????????????????????## ## ##??????????????? | | ????????????????????## #??????????????? | | ???????????????????## #??????????????? | | ???????????????????# @ #??????????????? | | ???????????????????# #??????????????? | | ???????????????????## ##??????????????? | | ????????????????????##### ##??????????????? | | ????????????????????????## #??????????????? | | ?????????????????????????## ##?????????????? | | ??????????????????????????# ######????????? | | ??????????????????????????# ##???????? | | ?????????????????????????## ##??????? | | ?????????????????????????# t ##?????? | | ???????????????????????# ### #?????? | | ??????????????????????# ##?## #?????? | | ??????????????????????# #???# #?????? | | ??????????????????????## #???## ##?????? | | ???????????????????????# ??#### #??????? | | ???????????????????????# ?## #??????? | | ??????????????????????? #?# #??????? | | ?????????????????????? #??# ##??????? | | ????????????????????? #???# ##???????? | | ????????????????????? #????# ##????????? | | ?????????????????????????????# #?????????? | | ?????????????????????????????## ##?????????? | | ??????????????????????????????### #??????????? | | ??????????????????????########### #??????????? | | ???####???????????????# #??????????? | +----------------------------------------------------+ Best States ------------- Heat Dissipation 25 Energy Generation 5 Energy Capacity 100 Matter Stores 300 Matter Capacity 300 Sight Range 16 Terrain Scan Density 10 Evasion (%) 50 Trap Extractor Capacity 6 Item Schematics ----------------- None Robot Schematics ------------------ None Fabricated ------------ Nothing Repaired ---------- Nothing Studied --------- None Alien Tech Used ----------------- None Achievements -------------- None Challenges ------------ None RPGLIKE | -11 -10 -10 -9 -9 -9 -8 --------- Run | Yrd Mat Min Mat Min Exi Min Levels Raised 3 | . . . 2 . . 1 XP Earned 7830 | 3000 40 600 2840 500 350 500 XP Spent 2200 | . . 1600 . . 600 . Upgrades 5 | . . 4 . . 1 . Mass Support 2 | . . 1 . . 1 . Inventory Capacity 3 | . . 3 . . . . Protomatter Created 39 | . . . 39 . . . Integrity Restored 117 | . . . 117 . . . Core 117 | . . . 117 . . . Protomatter Decayed 113 | . . 10 103 . . . Game ------ Seed AutogunChipBay Manual? 0 Play Time 00:06:01 Cumulative 662.7 hours Start 2026.07.15 @ 05:58:10 End 2026.07.15 @ 06:04:21 Sessions 1 Manual Loads 0 Difficulty Rogue Special Mode Winter2019/RPGLIKE Game No. 294 Rogue 140 Adventurer 154 Explorer 0 Win Type - Total 22 Types 4/5/4/3/2/1/0/1/1/1 Lore% 95 Gallery% 88 Achievement% 68 Wizard Run 0 Options --------- Layout 0 ASCII 0 Keyboard 0 Movement Numpad Keybinds 0 Fullscreen 2 Font 18/SmallcapsGlow Map View 76x50 Zoom Use 0% Tactical HUD 1 Map Filters NONE Filters NONE Steam 1 RUN: 89cde802-356f-4b20-a334-83aaa697e663